fUSD/lending_fUSD_20241227
["ID","MTS","AMOUNT","RATE_DAILY","PERIOD"]
[346869363,1735335051235,-500.0,0.00011013,2]
[346869364,1735335051245,-1276.17,0.00011013,2]
[346869365,1735335051254,-622.31,0.00011013,2]
[346869366,1735335051263,-1110.17,0.00011013,2]
[346869367,1735335051272,-533.54,0.00011013,2]
[346869368,1735335051281,-1039.01,0.00011013,2]
[346869369,1735335051291,-500.0,0.00011013,2]
[346869370,1735335051300,-1042.69,0.00011013,2]
[346869371,1735335051309,-11478.37,0.00011013,2]
[346869372,1735335051318,-565.18,0.00011013,2]
[346869373,1735335051328,-779.06,0.00011013,2]
[346869374,1735335051337,-604.56,0.00011013,2]
[346869375,1735335051346,-1138.15,0.00011013,2]
[346869376,1735335051355,-743.74,0.00011013,2]
[346869377,1735335051365,-464.113,0.00011013,2]
[346869378,1735335051374,-1942.4,0.00011013,2]
[346869379,1735335051383,-500.0,0.00011013,2]
[346869380,1735335051392,-539.67,0.00011013,2]
[346869381,1735335051402,-605.36,0.00011013,2]
[346869382,1735335051411,-6078.85,0.00011013,2]
[346869383,1735335051420,-500.0,0.00011013,2]
[346869384,1735335051429,-967.47,0.00011013,2]
[346869385,1735335051439,-500.0,0.00011014,2]
[346869386,1735335051448,-500.0,0.00011014,2]
[346869387,1735335051457,-500.0,0.00011014,2]
[346869388,1735335051467,-562.07,0.00011014,2]
[346869389,1735335051476,-743.51,0.00011014,2]
[346869390,1735335051486,-500.0,0.00011014,2]
[346869391,1735335051496,-500.0,0.00011014,2]
[346869392,1735335051506,-500.0,0.00011014,2]
[346869393,1735335051515,-725.01,0.00011014,2]
[346869394,1735335051525,-800.76,0.00011014,2]
[346869395,1735335051536,-500.0,0.00011014,2]
[346869396,1735335051546,-500.0,0.00011014,2]
[346869397,1735335051557,-620.36,0.00011014,2]
[346869398,1735335051567,-514.94,0.00011014,2]
[346869399,1735335051576,-500.0,0.00011014,2]
[346869400,1735335051587,-500.0,0.00011014,2]
[346869401,1735335051597,-567.62630065,0.00011014,2]
[346869402,1735335051609,-500.0,0.00011014,2]
[346869403,1735335051619,-500.0,0.00011014,2]
[346869404,1735335051629,-500.0,0.00011014,2]
[346869405,1735335051640,-500.0,0.00011014,2]
[346869406,1735335051650,-612.45,0.00011014,2]
[346869407,1735335051662,-500.0,0.00011014,2]
[346869408,1735335051672,-500.0,0.00011014,2]
[346869409,1735335051683,-500.0,0.00011014,2]
[346869410,1735335051692,-500.0,0.00011014,2]
[346869411,1735335051701,-500.0,0.00011014,2]
[346869412,1735335051711,-679.15,0.00011014,2]
[346869413,1735335051720,-593.59,0.00011014,2]
[346869414,1735335051730,-579.52,0.00011014,2]
[346869415,1735335051739,-490.78512808,0.00011014,2]
[346869416,1735335051750,-500.0,0.00011014,2]
[346869417,1735335051761,-585.31,0.00011014,2]
[346869418,1735335051770,-554.32,0.00011014,2]
[346869419,1735335051780,-580.64,0.00011014,2]
[346869420,1735335051789,-614.22,0.00011014,2]
[346869421,1735335051800,-651.61,0.00011014,2]
[346869422,1735335051810,-224.38759004,0.00011014,2]
[346869423,1735335051819,-659.03,0.00011014,2]
[346869424,1735335051828,-607.59,0.00011014,2]
[346869425,1735335051838,-500.0,0.00011014,2]
[346869426,1735335051848,-500.0,0.00011014,2]
[346869427,1735335051858,-654.76,0.00011014,2]
[346869428,1735335051867,-982.64,0.00011014,2]
[346869429,1735335051877,-521.75,0.00011014,2]
[346869430,1735335051886,-553.45,0.00011014,2]
[346869431,1735335051896,-823.85,0.00011014,2]
[346869432,1735335051905,-508.32,0.00011014,2]
[346869433,1735335051915,-684.32,0.00011014,2]
[346869434,1735335051925,-500.0,0.00011014,2]
[346869435,1735335051934,-500.0,0.00011014,2]
[346869436,1735335051944,-810.29,0.00011014,2]
[346869437,1735335051954,-858.36,0.00011014,2]
[346869438,1735335051964,-500.0,0.00011014,2]
[346869439,1735335051973,-500.0,0.00011014,2]
[346869440,1735335051983,-500.0,0.00011014,2]
[346869441,1735335051992,-683.28,0.00011014,2]
[346869442,1735335052003,-500.0,0.00011014,2]
[346869443,1735335052013,-556.58,0.00011014,2]
[346869444,1735335052024,-1087.99,0.00011014,2]
[346869445,1735335052034,-500.0,0.00011014,2]
[346869446,1735335052043,-500.0,0.00011014,2]
[346869447,1735335052052,-571.04,0.00011014,2]
[346869448,1735335052062,-500.0,0.00011014,2]
[346869449,1735335052071,-500.0,0.00011014,2]
[346869450,1735335052080,-794.06,0.00011014,2]
[346869451,1735335052091,-626.44,0.00011014,2]
[346869452,1735335052100,-1229.67,0.00011014,2]
[346869453,1735335052111,-771.51,0.00011014,2]
[346869454,1735335052120,-820.3,0.00011014,2]
[346869455,1735335052130,-858.09,0.00011014,2]
[346869456,1735335052141,-885.1,0.00011014,2]
[346869457,1735335052152,-500.0,0.00011014,2]
[346869458,1735335052162,-912.53,0.00011014,2]
[346869459,1735335052173,-1182.25,0.00011014,2]
[346869460,1735335052183,-869.5,0.00011014,2]
[346869461,1735335052192,-500.0,0.00011014,2]
[346869462,1735335052203,-500.0,0.00011014,2]
[346869463,1735335052213,-680.79,0.00011014,2]
[346869464,1735335052222,-928.47,0.00011014,2]
[346869465,1735335052232,-871.5,0.00011014,2]
[346869466,1735335052242,-577.59,0.00011014,2]
[346869467,1735335052255,-553.95,0.00011014,2]
[346869468,1735335052266,-738.83,0.00011014,2]
[346869469,1735335052276,-831.16,0.00011014,2]
[346869470,1735335052286,-500.0,0.00011014,2]
[346869471,1735335052296,-500.0,0.00011014,2]
[346869472,1735335052306,-1106.67,0.00011014,2]
[346869473,1735335052317,-738.83,0.00011014,2]
[346869474,1735335052327,-500.0,0.00011014,2]
[346869475,1735335052337,-1421.15,0.00011014,2]
[346869476,1735335052349,-681.17,0.00011014,2]
[346869477,1735335052359,-1711.95,0.00011014,2]
[346869478,1735335052369,-500.0,0.00011014,2]
[346869479,1735335052379,-536.6,0.00011014,2]
[346869480,1735335052388,-664.52,0.00011014,2]
[346869481,1735335052397,-966.82,0.00011014,2]
[346869482,1735335052406,-937.19,0.00011014,2]
[346869483,1735335052416,-931.36,0.00011014,2]
[346869484,1735335052426,-500.0,0.00011014,2]
[346869485,1735335052435,-500.0,0.00011014,2]
[346869486,1735335052446,-1538.24,0.00011014,2]
[346869487,1735335052455,-500.0,0.00011014,2]
[346869488,1735335052464,-500.0,0.00011014,2]
[346869489,1735335052473,-1469.06,0.00011014,2]
[346869490,1735335052483,-824.84,0.00011014,2]
[346869491,1735335052492,-500.0,0.00011014,2]
[346869492,1735335052502,-500.0,0.00011014,2]
[346869493,1735335052511,-1293.19,0.00011014,2]
[346869494,1735335052520,-1751.52,0.00011014,2]
[346869495,1735335052530,-859.74,0.00011014,2]
[346869496,1735335052539,-534.74,0.00011014,2]
[346869497,1735335052548,-500.0,0.00011014,2]
[346869498,1735335052557,-778.74,0.00011014,2]
[346869499,1735335052566,-1674.66,0.00011014,2]
[346869500,1735335052576,-738.28,0.00011014,2]
[346869501,1735335052586,-1063.24,0.00011014,2]
[346869502,1735335052595,-524.14,0.00011014,2]
[346869503,1735335052604,-1262.47,0.00011014,2]
[346869504,1735335052614,-705.18,0.00011014,2]
[346869505,1735335052623,-2150.6,0.00011014,2]
[346869506,1735335052632,-877.5,0.00011014,2]
[346869507,1735335052643,-1260.5,0.00011014,2]
[346869508,1735335052652,-766.5,0.00011014,2]
[346869509,1735335052662,-500.0,0.00011014,2]
[346869510,1735335052671,-2157.38,0.00011014,2]
[346869511,1735335052681,-694.85,0.00011014,2]
[346869512,1735335052690,-3983.24,0.00011014,2]
[346869513,1735335052699,-1988.66,0.00011014,2]
[346869514,1735335052708,-1073.44,0.00011014,2]
[346869515,1735335052718,-3865.39,0.00011014,2]
[346869516,1735335052727,-978.5,0.00011014,2]
[346869517,1735335052736,-2522.58,0.00011014,2]
[346869518,1735335052745,-5145.02,0.00011014,2]
[346869519,1735335052760,-956.98,0.00011014,2]
[346869520,1735335052770,-694.46,0.00011014,2]
[346869521,1735335052780,-2125.99,0.00011014,2]
[346869522,1735335052790,-500.0,0.00011014,2]
[346869523,1735335052801,-610.3,0.00011014,2]
[346869524,1735335052810,-23971.09,0.00011014,2]
[346869525,1735335052819,-703.32,0.00011014,2]
[346869526,1735335052829,-951.17,0.00011014,2]
[346869527,1735335052840,-1482.22,0.00011015,2]
[346869528,1735335052849,-2567.31,0.00011015,2]
[346869529,1735335052859,-1479.1,0.00011015,2]
[346869530,1735335052868,-18339.07,0.00011015,2]
[346869531,1735335052877,-708.0,0.00011015,2]
[346869532,1735335052887,-3062.7,0.00011015,2]
[346869533,1735335052897,-1224.86,0.00011015,2]
[346869534,1735335052907,-1953.1,0.00011015,2]
[346869535,1735335052917,-1790.92,0.00011015,2]
[346869536,1735335052926,-3832.04,0.00011015,2]
[346869537,1735335052936,-4598.53,0.00011015,2]
[346869538,1735335052945,-1752.23,0.00011015,2]
[346869539,1735335052955,-612.94,0.00011015,2]
[346869540,1735335052965,-3744.61,0.00011015,2]
[346869541,1735335052975,-1278.34,0.00011015,2]
[346869542,1735335052984,-1441.16,0.00011015,2]
[346869543,1735335052994,-1953.04,0.00011015,2]
[346869544,1735335053003,-1042.41,0.00011015,2]
[346869545,1735335053013,-3658.72,0.00011015,2]
[346869546,1735335053023,-8266.31,0.00011015,2]
[346869547,1735335053032,-2451.38,0.00011015,2]
[346869548,1735335053042,-1929.84,0.00011015,2]
[346869549,1735335053051,-3794.97,0.00011015,2]
[346869550,1735335053061,-1149.43,0.00011015,2]
[346869551,1735335053071,-1887.75,0.00011015,2]
[346869552,1735335053081,-630.69,0.00011015,2]
[346869553,1735335053091,-2938.63,0.00011015,2]
[346869554,1735335053102,-5319.03,0.00011015,2]
[346869555,1735335053112,-1635.79,0.00011015,2]
[346869556,1735335053122,-2809.57,0.00011015,2]
[346869557,1735335053131,-643.22,0.00011015,2]
[346869558,1735335053141,-1612.81,0.00011016,2]
[346869559,1735335053151,-3062.7,0.00011016,2]
[346869560,1735335053161,-500.0,0.00011017,2]
[346869561,1735335053170,-194.0,0.00011028,2]
[346869562,1735335053179,-194.0,0.00011028,2]
[346869563,1735335053189,-429.20526385,0.00011064,2]
[346869564,1735335053199,-1016.528664,0.00011134,2]
[346869565,1735335053208,-150.56,0.00011137,2]
[346869566,1735335053218,-300.0,0.00011137,2]
[346869567,1735335053227,-150.0,0.000112,2]
[346869568,1735335053237,-201.0,0.00011232,2]
[346869569,1735335053247,-14484.3302718,0.00011282,2]
[346869570,1735335053256,-6768.9575999,0.00011282,2]
[346869571,1735335053265,-851.460546,0.00011286,2]
[346869572,1735335053275,-715.128331,0.00011286,2]
[346869573,1735335053284,-1332.6,0.00011286,2]
[346869574,1735335053294,-774.75,0.00011286,2]
[346869575,1735335053304,-1573.99,0.00011286,2]
[346869576,1735335053313,-638.1,0.00011286,2]
[346869577,1735335053323,-1251.09,0.00011286,2]
[346869578,1735335053332,-1578.64,0.00011286,2]
[346869579,1735335053342,-1746.8,0.00011286,2]
[346869580,1735335053504,-1475.63,0.00011286,2]
[346869581,1735335053524,-2635.46,0.00011286,2]
[346869582,1735335053534,-1686.47,0.00011286,2]
[346869583,1735335053544,-7290.67,0.00011286,2]
[346869584,1735335053553,-5012.83,0.00011286,2]
[346869585,1735335053562,-663.52,0.00011286,2]
[346869586,1735335053572,-500.0,0.00011286,2]
[346869587,1735335053581,-500.0,0.00011286,2]
[346869588,1735335053590,-632.02550943,0.00011286,2]
[346869589,1735335053600,-842.28,0.00011286,2]
[346869590,1735335053609,-500.0,0.00011286,2]
[346869591,1735335053619,-500.0,0.00011286,2]
[346869592,1735335053628,-654.58,0.00011286,2]
[346869593,1735335053637,-2043.41,0.00011286,2]
[346869594,1735335053647,-500.0,0.00011286,2]
[346869595,1735335053656,-500.0,0.00011287,2]
[346869596,1735335053666,-500.0,0.00011287,2]
[346869597,1735335053675,-392.55852292,0.00011287,2]
[346869598,1735335053685,-500.0,0.00011287,2]
[346869599,1735335053694,-388.19195862,0.00011287,2]
[346869600,1735335053703,-546.94,0.00011287,2]
[346869601,1735335053713,-500.0,0.00011287,2]
[346869602,1735335053722,-500.0,0.00011287,2]
[346869603,1735335053731,-500.0,0.00011287,2]
[346869604,1735335053741,-500.0,0.00011287,2]
[346869605,1735335053752,-500.0,0.00011287,2]
[346869606,1735335053761,-500.0,0.00011287,2]
[346869607,1735335053771,-522.77,0.00011287,2]
[346869608,1735335053780,-500.0,0.00011287,2]
[346869609,1735335053789,-500.0,0.00011287,2]
[346869610,1735335053799,-500.0,0.00011287,2]
[346869611,1735335053808,-500.0,0.00011287,2]
[346869612,1735335053819,-511.7,0.00011287,2]
[346869613,1735335053830,-500.0,0.00011287,2]
[346869614,1735335053840,-583.7,0.00011287,2]
[346869615,1735335053850,-500.0,0.00011287,2]
[346869616,1735335053859,-500.0,0.00011287,2]
[346869617,1735335053869,-369.35664887,0.00011287,2]
[346869618,1735335053880,-500.0,0.00011287,2]
[346869619,1735335053890,-591.94,0.00011287,2]
[346869620,1735335053899,-500.0,0.00011287,2]
[346869621,1735335053908,-500.0,0.00011287,2]
[346869622,1735335053918,-564.92,0.00011287,2]
[346869623,1735335053927,-1197.81,0.00011287,2]
[346869624,1735335053937,-1040.71,0.00011287,2]
[346869625,1735335053946,-500.0,0.00011287,2]
[346869626,1735335053955,-500.0,0.00011287,2]
[346869627,1735335053965,-500.0,0.00011287,2]
[346869628,1735335053974,-500.0,0.00011287,2]
[346869629,1735335053984,-500.0,0.00011287,2]
[346869630,1735335053994,-614.06,0.00011287,2]
[346869631,1735335054003,-953.94,0.00011287,2]
[346869632,1735335054012,-295.79793656,0.00011287,2]
[346869633,1735335054022,-500.0,0.00011287,2]
[346869634,1735335054031,-500.0,0.00011287,2]
[346869635,1735335054040,-793.33,0.00011287,2]
[346869636,1735335054050,-1198.73,0.00011287,2]
[346869637,1735335054059,-500.0,0.00011287,2]
[346869638,1735335054068,-570.08,0.00011287,2]
[346869639,1735335054077,-782.58,0.00011287,2]
[346869640,1735335054087,-570.48,0.00011287,2]
[346869641,1735335054096,-500.0,0.00011287,2]
[346869642,1735335054106,-500.0,0.00011287,2]
[346869643,1735335054115,-500.0,0.00011287,2]
[346869644,1735335054125,-594.8,0.00011287,2]
[346869645,1735335054135,-500.0,0.00011287,2]
[346869646,1735335054144,-500.0,0.00011287,2]
[346869647,1735335054154,-500.0,0.00011287,2]
[346869648,1735335054163,-500.0,0.00011287,2]
[346869649,1735335054173,-500.0,0.00011287,2]
[346869650,1735335054182,-528.16254845,0.00011287,2]
[346869651,1735335054191,-500.0,0.00011287,2]
[346869652,1735335054200,-521.4,0.00011287,2]
[346869653,1735335054209,-500.0,0.00011287,2]
[346869654,1735335054217,-610.17,0.00011287,2]
[346869655,1735335054226,-618.92,0.00011287,2]
[346869656,1735335054236,-177.90345102,0.00011287,2]
[346869657,1735335054245,-500.0,0.00011287,2]
[346869658,1735335054254,-402.54906239,0.00011287,2]
[346869659,1735335054264,-500.0,0.00011287,2]
[346869660,1735335054272,-501.49,0.00011287,2]
[346869661,1735335054281,-577.99,0.00011287,2]
[346869662,1735335054291,-500.0,0.00011287,2]
[346869663,1735335054300,-500.0,0.00011287,2]
[346869664,1735335054309,-593.91,0.00011287,2]
[346869665,1735335054318,-616.63,0.00011287,2]
[346869666,1735335054327,-933.68,0.00011287,2]
[346869667,1735335054336,-1294.48,0.00011287,2]
[346869668,1735335054345,-614.14,0.00011287,2]
[346869669,1735335054353,-500.0,0.00011287,2]
[346869670,1735335054362,-566.55,0.00011287,2]
[346869671,1735335054371,-500.0,0.00011287,2]
[346869672,1735335054381,-500.0,0.00011287,2]
[346869673,1735335054390,-500.0,0.00011287,2]
[346869674,1735335054399,-500.0,0.00011287,2]
[346869675,1735335054408,-1117.62,0.00011287,2]
[346869676,1735335054418,-500.0,0.00011287,2]
[346869677,1735335054427,-500.0,0.00011287,2]
[346869678,1735335054436,-620.67,0.00011287,2]
[346869679,1735335054445,-500.0,0.00011287,2]
[346869680,1735335054454,-500.0,0.00011287,2]
[346869681,1735335054463,-500.0,0.00011287,2]
[346869682,1735335054473,-589.56,0.00011287,2]
[346869683,1735335054482,-500.0,0.00011287,2]
[346869684,1735335054493,-751.56,0.00011287,2]
[346869685,1735335054503,-531.43,0.00011287,2]
[346869686,1735335054512,-842.22,0.00011287,2]
[346869687,1735335054522,-500.0,0.00011287,2]
[346869688,1735335054531,-500.0,0.00011287,2]
[346869689,1735335054541,-500.0,0.00011287,2]
[346869690,1735335054551,-669.23,0.00011287,2]
[346869691,1735335054560,-500.0,0.00011287,2]
[346869692,1735335054570,-500.0,0.00011287,2]
[346869693,1735335054580,-629.20680265,0.00011287,2]
[346869694,1735335054589,-500.0,0.00011287,2]
[346869695,1735335054598,-811.49,0.00011287,2]
[346869696,1735335054608,-627.83,0.00011287,2]
[346869697,1735335054617,-813.68,0.00011287,2]
[346869698,1735335054627,-830.06,0.00011287,2]
[346869699,1735335054638,-500.0,0.00011287,2]
[346869700,1735335054647,-500.0,0.00011287,2]
[346869701,1735335054657,-655.61,0.00011287,2]
[346869702,1735335054667,-524.43,0.00011287,2]
[346869703,1735335054677,-566.54,0.00011287,2]
[346869704,1735335054687,-500.0,0.00011287,2]
[346869705,1735335054697,-500.0,0.00011287,2]
[346869706,1735335054706,-1141.92,0.00011287,2]
[346869707,1735335054718,-540.09,0.00011287,2]
[346869708,1735335054727,-500.0,0.00011287,2]
[346869709,1735335054737,-925.24,0.00011287,2]
[346869710,1735335054748,-1075.53,0.00011287,2]
[346869711,1735335054761,-520.37,0.00011287,2]
[346869712,1735335054771,-500.0,0.00011287,2]
[346869713,1735335054781,-770.09,0.00011287,2]
[346869714,1735335054790,-561.2,0.00011287,2]
[346869715,1735335054801,-962.77,0.00011287,2]
[346869716,1735335054811,-629.5,0.00011287,2]
[346869717,1735335054820,-532.97,0.00011287,2]
[346869718,1735335054831,-710.19,0.00011287,2]
[346869719,1735335054843,-500.0,0.00011287,2]
[346869720,1735335054853,-500.0,0.00011287,2]
[346869721,1735335054863,-547.52,0.00011287,2]
[346869722,1735335054872,-500.0,0.00011287,2]
[346869723,1735335054883,-304.89238959,0.00011287,2]
[346869724,1735335054892,-519.81,0.00011287,2]
[346869725,1735335054902,-574.15,0.00011287,2]
[346869726,1735335054911,-596.61,0.00011287,2]
[346869727,1735335054921,-591.18,0.00011287,2]
[346869728,1735335054930,-762.67,0.00011287,2]
[346869729,1735335054940,-534.31,0.00011287,2]
[346869730,1735335054950,-1138.39,0.00011287,2]
[346869731,1735335054959,-500.0,0.00011287,2]
[346869732,1735335054969,-722.68,0.00011287,2]
[346869733,1735335054978,-500.0,0.00011287,2]
[346869734,1735335054988,-500.0,0.00011287,2]
[346869735,1735335054997,-1028.39,0.00011287,2]
[346869736,1735335055007,-500.0,0.00011287,2]
[346869737,1735335055016,-922.33,0.00011287,2]
[346869738,1735335055026,-554.29,0.00011287,2]
[346869739,1735335055035,-500.0,0.00011287,2]
[346869740,1735335055045,-517.38,0.00011287,2]
[346869741,1735335055054,-1147.95,0.00011287,2]
[346869742,1735335055063,-500.0,0.00011287,2]
[346869743,1735335055073,-501.47,0.00011287,2]
[346869744,1735335055083,-1474.25,0.00011287,2]
[346869745,1735335055092,-500.0,0.00011287,2]
[346869746,1735335055102,-500.0,0.00011287,2]
[346869747,1735335055111,-500.0,0.00011287,2]
[346869748,1735335055120,-500.0,0.00011287,2]
[346869749,1735335055131,-561.23,0.00011287,2]
[346869750,1735335055141,-500.0,0.00011287,2]
[346869751,1735335055150,-500.0,0.00011287,2]
[346869752,1735335055160,-555.3,0.00011287,2]
[346869753,1735335055169,-965.42,0.00011287,2]
[346869754,1735335055179,-558.49,0.00011287,2]
[346869755,1735335055189,-660.21,0.00011287,2]
[346869756,1735335055199,-500.0,0.00011287,2]
[346869757,1735335055208,-2510.32,0.00011287,2]
[346869758,1735335055218,-1141.83,0.00011287,2]
[346869759,1735335055227,-753.93,0.00011287,2]
[346869760,1735335055237,-665.24,0.00011287,2]
[346869761,1735335055246,-1962.65,0.00011287,2]
[346869762,1735335055255,-500.0,0.00011287,2]
[346869763,1735335055265,-898.21,0.00011287,2]
[346869764,1735335055275,-626.95,0.00011287,2]
[346869765,1735335055284,-1135.99,0.00011287,2]
[346869766,1735335055293,-500.0,0.00011287,2]
[346869767,1735335055302,-1076.99,0.00011287,2]
[346869768,1735335055312,-1278.81,0.00011287,2]
[346869769,1735335055321,-1959.01,0.00011287,2]
[346869770,1735335055330,-517.2,0.00011287,2]
[346869771,1735335055340,-722.38,0.00011287,2]
[346869772,1735335055350,-500.0,0.00011287,2]
[346869773,1735335055359,-845.25,0.00011287,2]
[346869774,1735335055369,-13275.46,0.00011287,2]
[346869775,1735335055378,-576.55,0.00011287,2]
[346869776,1735335055388,-1227.81,0.00011287,2]
[346869777,1735335055398,-500.0,0.00011287,2]
[346869778,1735335055407,-1491.52,0.00011287,2]
[346869779,1735335055416,-1212.23,0.00011287,2]
[346869780,1735335055425,-668.6,0.00011287,2]
[346869781,1735335055435,-739.47,0.00011287,2]
[346869782,1735335055444,-1079.06,0.00011287,2]
[346869783,1735335055454,-513.99,0.00011287,2]
[346869784,1735335055463,-500.0,0.00011287,2]
[346869785,1735335055473,-500.0,0.00011287,2]
[346869786,1735335055483,-2128.96,0.00011287,2]
[346869787,1735335055492,-1202.7,0.00011287,2]
[346869788,1735335055501,-500.0,0.00011287,2]
[346869789,1735335055511,-500.0,0.00011287,2]
[346869790,1735335055520,-500.0,0.00011287,2]
[346869791,1735335055529,-810.95,0.00011287,2]
[346869792,1735335055540,-500.0,0.00011287,2]
[346869793,1735335055551,-1012.49,0.00011287,2]
[346869794,1735335055561,-582.78,0.00011287,2]
[346869795,1735335055572,-2726.56,0.00011287,2]
[346869796,1735335055583,-6516.46,0.00011287,2]
[346869797,1735335055594,-2540.8,0.00011287,2]
[346869798,1735335055604,-500.0,0.00011287,2]
[346869799,1735335055614,-1006.4,0.00011287,2]
[346869800,1735335055624,-707.43,0.00011287,2]
[346869801,1735335055633,-685.69,0.00011287,2]
[346869802,1735335055643,-553.58,0.00011287,2]
[346869803,1735335055653,-500.0,0.00011287,2]
[346869804,1735335055663,-722.52,0.00011287,2]
[346869805,1735335055672,-1979.24,0.00011287,2]
[346869806,1735335055682,-515.75,0.00011287,2]
[346869807,1735335055691,-1463.67,0.00011287,2]
[346869808,1735335055701,-1142.96,0.00011287,2]
[346869809,1735335055711,-1277.79,0.00011287,2]
[346869810,1735335055720,-4784.24,0.00011287,2]
[346869811,1735335055729,-500.0,0.00011287,2]
[346869812,1735335055739,-708.52,0.00011287,2]
[346869813,1735335055749,-500.0,0.00011287,2]
[346869814,1735335055760,-2428.42,0.00011287,2]
[346869815,1735335055770,-8547.03,0.00011287,2]
[346869816,1735335055779,-500.0,0.00011287,2]
[346869817,1735335055789,-1276.17,0.00011287,2]
[346869818,1735335055799,-622.31,0.00011287,2]
[346869819,1735335055808,-1110.17,0.00011287,2]
[346869820,1735335055817,-533.54,0.00011287,2]
[346869821,1735335055827,-1039.01,0.00011287,2]
[346869822,1735335055837,-500.0,0.00011287,2]
[346869823,1735335055847,-1042.69,0.00011287,2]
[346869824,1735335055857,-11478.37,0.00011287,2]
[346869825,1735335055867,-565.18,0.00011287,2]
[346869826,1735335055877,-779.06,0.00011287,2]
[346869827,1735335055886,-604.56,0.00011287,2]
[346869828,1735335055895,-1138.15,0.00011287,2]
[346869829,1735335055906,-743.74,0.00011287,2]
[346869830,1735335055916,-1942.4,0.00011287,2]
[346869831,1735335055926,-500.0,0.00011287,2]
[346869832,1735335055936,-539.67,0.00011287,2]
[346869833,1735335055945,-605.36,0.00011287,2]
[346869834,1735335056008,-6078.85,0.00011287,2]
[346869835,1735335056018,-500.0,0.00011287,2]
[346869836,1735335056027,-967.47,0.00011287,2]
[346869837,1735335056037,-500.0,0.00011288,2]
[346869838,1735335056046,-500.0,0.00011288,2]
[346869839,1735335056055,-500.0,0.00011288,2]
[346869840,1735335056064,-562.07,0.00011288,2]
[346869841,1735335056074,-743.51,0.00011288,2]
[346869842,1735335056083,-500.0,0.00011288,2]
[346869843,1735335056092,-500.0,0.00011288,2]
[346869844,1735335056102,-500.0,0.00011288,2]
[346869845,1735335056112,-725.01,0.00011288,2]
[346869846,1735335056121,-800.76,0.00011288,2]
[346869847,1735335056130,-500.0,0.00011288,2]
[346869848,1735335056139,-500.0,0.00011288,2]
[346869849,1735335056149,-620.36,0.00011288,2]
[346869850,1735335056158,-500.0,0.00011288,2]
[346869851,1735335056167,-514.94,0.00011288,2]
[346869852,1735335056176,-500.0,0.00011288,2]
[346869853,1735335056186,-500.0,0.00011288,2]
[346869854,1735335056195,-500.0,0.00011288,2]
[346869855,1735335056204,-500.0,0.00011288,2]
[346869856,1735335056214,-500.0,0.00011288,2]
[346869857,1735335056223,-612.45,0.00011288,2]
[346869858,1735335056233,-500.0,0.00011288,2]
[346869859,1735335056242,-271.2,0.00011288,2]
[346869860,1735335056251,-500.0,0.00011288,2]
[346869861,1735335056260,-500.0,0.00011288,2]
[346869862,1735335056269,-500.0,0.00011288,2]